fUST/lending_fUST_20250608
["ID","MTS","AMOUNT","RATE_DAILY","PERIOD"]
[364935075,1749317444015,-500.0,0.00021314,2]
[364935077,1749317444024,-193.094859,0.00021328,2]
[364935079,1749317444034,-151.0,0.00021341,2]
[364935081,1749317444043,-151.0,0.00021341,2]
[364935083,1749317444053,-387.122324,0.00021341,2]
[364935085,1749317444062,-387.122324,0.00021341,2]
[364935087,1749317444072,-275.03443289,0.00021341,2]
[364935089,1749317444081,-504.77353075,0.00021451,2]
[364935091,1749317444090,-440.0,0.00021526,2]
[364935093,1749317444100,-14426.87,0.00021526,2]
[364935095,1749317444109,-759.22,0.00021526,2]
[364935097,1749317444119,-420.0,0.00021526,2]
[364935099,1749317444129,-440.0,0.00021526,2]
[364935101,1749317444139,-541.48,0.00021526,2]
[364935103,1749317444149,-440.0,0.00021528,2]
[364935105,1749317444159,-440.0,0.00021528,2]
[364935107,1749317444168,-399.15417083,0.00021528,2]
[364935109,1749317444178,-440.0,0.00021528,2]
[364935111,1749317444187,-440.0,0.00021528,2]
[364935113,1749317444196,-440.0,0.00021528,2]
[364935115,1749317444206,-440.0,0.00021528,2]
[364935117,1749317444215,-440.0,0.00021528,2]
[364935119,1749317444224,-440.0,0.00021528,2]
[364935121,1749317444234,-151.0,0.00021529,2]
[364935123,1749317444244,-440.0,0.00021529,2]
[364935125,1749317444253,-440.0,0.00021529,2]
[364935127,1749317444263,-440.0,0.00021529,2]
[364935129,1749317444272,-440.0,0.0002153,2]
[364935131,1749317444281,-313.29837282,0.0002153,2]
[364935133,1749317444291,-285.472159,0.0002153,2]
[364935135,1749317444300,-285.472159,0.0002153,2]
[364935137,1749317444310,-220.58967016,0.0002153,2]
[364935139,1749317444319,-151.0,0.0002153,2]
[364935141,1749317444329,-151.0,0.0002153,2]
[364935143,1749317444339,-370.0,0.0002153,2]
[364935145,1749317444349,-440.0,0.0002153,2]
[364935147,1749317444358,-440.0,0.0002153,2]
[364935149,1749317444367,-440.0,0.0002153,2]
[364935151,1749317444376,-497.22,0.0002153,2]
[364935153,1749317444386,-440.0,0.0002153,2]
[364935155,1749317444395,-440.0,0.0002153,2]
[364935157,1749317444405,-440.0,0.000218,2]
[364935159,1749317444414,-14426.87,0.000218,2]
[364935161,1749317444424,-759.22,0.000218,2]
[364935163,1749317444433,-440.0,0.000218,2]
[364935165,1749317444443,-440.0,0.00021802,2]
[364935167,1749317444452,-440.0,0.00021802,2]
[364935169,1749317444462,-440.0,0.00021802,2]
[364935171,1749317444472,-440.0,0.00021802,2]
[364935173,1749317444484,-440.0,0.00021802,2]
[364935175,1749317444494,-440.0,0.00021802,2]
[364935177,1749317444503,-470.78,0.00021802,2]
[364935180,1749317444513,-440.0,0.00021803,2]
[364935182,1749317444523,-440.0,0.00021803,2]
[364935184,1749317444534,-440.0,0.00021803,2]
[364935186,1749317444544,-440.0,0.00021804,2]
[364935188,1749317444553,-554.09231252,0.00021804,2]
[364935190,1749317444563,-440.0,0.00021804,2]
[364935192,1749317444572,-440.0,0.00021804,2]
[364935194,1749317444582,-497.22,0.00021804,2]
[364935196,1749317444591,-440.0,0.00021804,2]
[364935198,1749317444601,-440.0,0.00021804,2]
[364935200,1749317444610,-1870.0,0.00022,2]
[364935202,1749317444620,-1870.0,0.00022,2]
[364935204,1749317444630,-1870.0,0.00022,2]
[364935206,1749317444640,-1870.0,0.00022,2]
[364935208,1749317444649,-1870.0,0.00022,2]
[364935210,1749317444659,-1870.0,0.00022,2]
[364935212,1749317444669,-1870.0,0.00022,2]
[364935214,1749317444679,-1870.0,0.00022,2]
[364935216,1749317444688,-1870.0,0.00022,2]
[364935218,1749317444698,-1870.0,0.00022,2]
[364935220,1749317444707,-151.0,0.0002201,7]
[364935222,1749317444717,-151.0,0.0002201,7]
[364935224,1749317444726,-151.0,0.0002201,7]
[364935226,1749317444736,-779.29,0.00022015,2]
[364935228,1749317444745,-440.0,0.00022074,2]
[364935230,1749317444755,-14426.87,0.00022074,2]
[364935232,1749317444764,-759.22,0.00022074,2]
[364935234,1749317444774,-440.0,0.00022074,2]
[364935236,1749317444783,-440.0,0.00022076,2]
[364935238,1749317444793,-440.0,0.00022076,2]
[364935240,1749317444802,-440.0,0.00022076,2]
[364935242,1749317444811,-440.0,0.00022076,2]
[364935244,1749317444821,-440.0,0.00022076,2]
[364935246,1749317444830,-151.0,0.00022076,7]
[364935248,1749317444839,-151.0,0.00022076,7]
[364935250,1749317444848,-440.0,0.00022076,2]
[364935252,1749317444858,-156.44758916,0.00022077,2]
[364935254,1749317444867,-387.122324,0.00022077,7]
[364935256,1749317444877,-387.122324,0.00022077,7]
[364935258,1749317444886,-440.0,0.00022077,2]
[364935260,1749317444895,-440.0,0.00022077,2]
[364935262,1749317444905,-440.0,0.00022078,2]
[364935264,1749317444915,-440.0,0.00022078,2]
[364935266,1749317444924,-440.0,0.00022078,2]
[364935268,1749317444933,-497.22,0.00022078,2]
[364935270,1749317444943,-440.0,0.00022078,2]
[364935272,1749317444952,-440.0,0.00022078,2]
[364935274,1749317444962,-285.472159,0.00022079,7]
[364935277,1749317444972,-285.472159,0.00022079,7]
[364935279,1749317444981,-151.0,0.00022079,7]
[364935280,1749317444991,-151.0,0.00022079,7]
[364935283,1749317445000,-417.14724398,0.00022098,2]
[364935284,1749317445010,-207.4,0.00022098,2]
[364935287,1749317445019,-151.0,0.00022107,7]
[364935289,1749317445029,-193.094859,0.00022322,2]
[364935290,1749317445040,-440.0,0.00022348,2]
[364935292,1749317445050,-14426.87,0.00022348,2]
[364935294,1749317445059,-759.22,0.00022348,2]
[364935296,1749317445068,-440.0,0.00022348,2]
[364935299,1749317445078,-440.0,0.0002235,2]
[364935301,1749317445087,-440.0,0.0002235,2]
[364935302,1749317445097,-440.0,0.0002235,2]
[364935305,1749317445107,-440.0,0.0002235,2]
[364935307,1749317445116,-440.0,0.0002235,2]
[364935309,1749317445126,-440.0,0.0002235,2]
[364935311,1749317445135,-464.8834437,0.00022351,2]
[364935313,1749317445145,-295.71113709,0.00022351,2]
[364935315,1749317445155,-440.0,0.00022352,2]
[364935317,1749317445164,-440.0,0.00022352,2]
[364935319,1749317445174,-497.22,0.00022352,2]
[364935321,1749317445183,-440.0,0.00022352,2]
[364935323,1749317445192,-440.0,0.00022352,2]
[364935325,1749317445202,-500.0,0.00022575,2]
[364935327,1749317445211,-1063.7,0.000226,7]
[364935329,1749317445220,-440.0,0.00022622,2]
[364935331,1749317445230,-14426.87,0.00022622,2]
[364935333,1749317445239,-759.22,0.00022622,2]
[364935335,1749317445249,-440.0,0.00022624,2]
[364935337,1749317445259,-188.43558558,0.00022624,2]
[364935339,1749317445268,-440.0,0.00022624,2]
[364935341,1749317445280,-440.0,0.00022624,2]
[364935344,1749317445290,-440.0,0.00022624,2]
[364935346,1749317445299,-440.0,0.00022624,2]
[364935348,1749317445308,-151.0,0.00022626,7]
[364935350,1749317445319,-440.0,0.00022626,2]
[364935352,1749317445328,-251.47315985,0.00022626,2]
[364935354,1749317445338,-497.22,0.00022626,2]
[364935356,1749317445348,-440.0,0.00022626,2]
[364935358,1749317445357,-440.0,0.00022626,2]
[364935360,1749317445366,-243.17,0.000228,7]
[364935362,1749317445376,-440.0,0.00022896,2]
[364935364,1749317445385,-14426.87,0.00022896,2]
[364935366,1749317445395,-759.22,0.00022896,2]
[364935368,1749317445404,-440.0,0.00022898,2]
[364935370,1749317445414,-441.49,0.00022898,2]
[364935372,1749317445423,-440.0,0.00022898,2]
[364935374,1749317445433,-440.0,0.00022898,2]
[364935376,1749317445443,-151.0,0.00022898,7]
[364935378,1749317445453,-151.0,0.00022898,7]
[364935380,1749317445463,-440.0,0.00022898,2]
[364935382,1749317445472,-387.122324,0.00022899,7]
[364935384,1749317445483,-387.122324,0.00022899,7]
[364935386,1749317445493,-285.472159,0.000229,7]
[364935388,1749317445503,-285.472159,0.000229,7]
[364935390,1749317445513,-151.0,0.000229,7]
[364935392,1749317445523,-151.0,0.000229,7]
[364935394,1749317445533,-440.0,0.000229,2]
[364935396,1749317445543,-497.22,0.000229,2]
[364935398,1749317445553,-440.0,0.000229,2]
[364935400,1749317445564,-440.0,0.000229,2]
[364935402,1749317445573,-151.0,0.00022901,7]
[364935404,1749317445583,-500.0,0.00023047,2]
[364935406,1749317445593,-1000.0,0.00023123,2]
[364935408,1749317445603,-193.99,0.0002317,2]
[364935410,1749317445613,-14426.87,0.0002317,2]
[364935412,1749317445622,-759.22,0.0002317,2]
[364935414,1749317445633,-440.0,0.00023172,2]
[364935416,1749317445643,-440.0,0.00023172,2]
[364935418,1749317445653,-440.0,0.00023172,2]
[364935420,1749317445662,-440.0,0.00023172,2]
[364935422,1749317445672,-440.0,0.00023174,2]
[364935424,1749317445682,-497.22,0.00023174,2]
[364935426,1749317445691,-340.11,0.00023174,2]
[364935428,1749317445701,-440.0,0.00023174,2]
[364935430,1749317445711,-500.0,0.00023224,2]
[364935432,1749317445721,-405.0,0.00023302,2]
[364935434,1749317445730,-193.094859,0.00023316,2]
[364935436,1749317445739,-500.0,0.00023354,2]
[364935438,1749317445749,-14426.87,0.00023444,2]
[364935440,1749317445759,-759.22,0.00023444,2]
[364935442,1749317445768,-568.04292532,0.00023446,2]
[364935444,1749317445778,-440.0,0.00023446,2]
[364935446,1749317445787,-440.0,0.00023446,2]
[364935448,1749317445797,-440.0,0.00023446,2]
[364935450,1749317445807,-151.0,0.00023448,7]
[364935452,1749317445816,-499.51251599,0.00023448,2]
[364935454,1749317445826,-497.22,0.00023448,2]
[364935456,1749317445836,-209.04,0.00023448,2]
[364935458,1749317445845,-215.0738,0.00023467,2]
[364935461,1749317445856,-1560.084182,0.00023659,2]
[364935462,1749317445865,-7604.68457063,0.00023718,2]
[364935595,1749317447223,-6822.18542937,0.00023718,2]
[364935597,1749317447234,-759.22,0.00023718,2]
[364935599,1749317447244,-440.0,0.0002372,2]
[364935601,1749317447254,-440.0,0.0002372,2]
[364935603,1749317447264,-151.0,0.0002372,7]
[364935605,1749317447274,-151.0,0.0002372,7]
[364935607,1749317447283,-440.0,0.0002372,2]
[364935609,1749317447292,-110.09441062,0.00023721,7]
[364935612,1749317447304,-277.02791338,0.00023721,7]
[364935614,1749317447313,-387.122324,0.00023721,7]
[364935616,1749317447323,-285.472159,0.00023722,7]
[364935618,1749317447333,-285.472159,0.00023722,7]
[364935620,1749317447343,-151.0,0.00023722,7]
[364935622,1749317447352,-151.0,0.00023722,7]
[364935624,1749317447362,-497.22,0.00023722,2]
[364935626,1749317447371,-21524.71280794,0.000238,2]
[364935628,1749317447380,-5246.25381971,0.000238,2]
[364935630,1749317447389,-1014.44,0.000238,2]
[364935632,1749317447398,-151.0,0.000238,7]
[364935634,1749317447408,-151.0,0.000238,7]
[364935636,1749317447417,-151.0,0.000238,7]
[364935637,1749317447426,-190768.22952107,0.000238,3]
[364935640,1749317447438,-40371.34951909,0.000238,3]
[364935671,1749317447733,-7445.82780542,0.000238,3]
[364935673,1749317447748,-69807.65864321,0.000238,3]
[364935676,1749317447761,-19745.95487906,0.000238,3]
[364935678,1749317447775,-32103.81757362,0.000238,3]
[364935681,1749317447790,-16491.46946145,0.000238,3]
[364935683,1749317447800,-546.899618,0.00023895,3]
[364935685,1749317447809,-1063.7,0.000239,7]
[364935687,1749317447819,-521.45714471,0.000239,2]
[364935689,1749317447828,-371.75727751,0.0002399,2]
[364935691,1749317447838,-151.0,0.00023991,7]
[364935693,1749317447847,-151.0,0.00023991,7]
[364935695,1749317447857,-151.0,0.00023991,7]
[364935697,1749317447868,-151.0,0.00023991,7]
[364935699,1749317447878,-14426.87,0.00023992,2]
[364935701,1749317447887,-759.22,0.00023992,2]
[364935703,1749317447897,-440.0,0.00023994,2]
[364935705,1749317447907,-440.0,0.00023994,2]
[364935707,1749317447917,-440.0,0.00023994,2]
[364935709,1749317447927,-497.22,0.00023996,2]
[364935711,1749317447937,-151.0,0.00024,7]
[364935713,1749317447947,-151.0,0.00024,7]
[364935715,1749317447956,-2000.0,0.00024,2]
[364935717,1749317447966,-151.0,0.00024,7]
[364935719,1749317447975,-151.0,0.00024,7]
[364935721,1749317447984,-151.0,0.00024,7]
[364935723,1749317447994,-151.0,0.00024,7]
[364935725,1749317448004,-201.093306,0.00024,7]
[364935727,1749317448014,-842.5625,0.00024,7]
[364935729,1749317448023,-423.90693687,0.00024,7]
[364935731,1749317448032,-1558.59,0.00024017,2]
[364935733,1749317448044,-208.0,0.0002415,10]
[364935735,1749317448053,-243.17,0.000242,7]
[364935737,1749317448063,-14426.87,0.00024266,2]
[364935739,1749317448076,-759.22,0.00024266,2]
[364935741,1749317448086,-401.81486513,0.00024268,2]
[364935744,1749317448096,-440.0,0.00024268,2]
[364935746,1749317448106,-151.0,0.00024269,7]
[364935748,1749317448116,-151.0,0.0002427,7]
[364935750,1749317448126,-497.22,0.0002427,2]
[364935752,1749317448136,-885.0,0.000243,2]
[364935754,1749317448146,-193.094859,0.0002431,2]
[364935756,1749317448155,-151.0,0.00024324,7]
[364935758,1749317448165,-151.0,0.00024324,7]
[364935760,1749317448174,-500.0,0.000244,2]
[364935762,1749317448185,-186908.13079515,0.000244,11]
[364935764,1749317448200,-21813.48015233,0.000244,11]
[364935767,1749317448215,-23865.43452821,0.000244,11]
[364935791,1749317967960,164.8184,0.00013699,2]
[364935794,1749318303141,7605.35100584,0.000164,2]
[364935796,1749318453290,173.81904823,0.000189,2]
[364935808,1749318527346,1000.0,0.00025,120]
[364935810,1749318603133,7605.35100584,0.000164,2]
[364935816,1749318631943,-210.79004747,0.00019046,2]
[364935817,1749318631954,-1200.0,0.0001947,2]
[364935818,1749318631964,-300.0,0.00019471,2]
[364935819,1749318631975,-300.0,0.00019471,2]
[364935820,1749318631984,-300.0,0.00019471,2]
[364935821,1749318631994,-300.0,0.00019471,2]
[364935822,1749318632003,-300.0,0.00019471,2]
[364935823,1749318632014,-300.0,0.00019471,2]
[364935824,1749318632026,-15497.5198843,0.00019472,2]
[364935825,1749318632036,-225.2009868,0.00019599,2]
[364935826,1749318632045,-1517.3494245,0.00019635,2]
[364935827,1749318632055,-174.8095544,0.00019657,2]
[364935828,1749318632065,-159.60942691,0.00020599,2]
[364935829,1749318632075,-250.91643003,0.00020689,2]
[364935830,1749318632085,-16000.0,0.00020689,2]
[364935831,1749318632094,-500.0,0.00020698,2]
[364935832,1749318632104,-500.0,0.00020698,2]
[364935833,1749318632114,-440.0,0.00020699,2]
[364935834,1749318632124,-440.0,0.00020699,2]
[364935835,1749318632136,-440.0,0.00020699,2]
[364935836,1749318632146,-440.0,0.00020699,2]
[364935837,1749318632155,-412.31400894,0.00020699,2]
[364935838,1749318632165,-440.0,0.00020699,2]
[364935839,1749318632174,-440.0,0.00020699,2]
[364935840,1749318632185,-4892.26,0.00020699,2]
[364935841,1749318632194,-440.0,0.00020699,2]
[364935842,1749318632204,-430.0,0.00020699,2]
[364935843,1749318632214,-440.0,0.00020699,2]
[364935844,1749318632224,-440.0,0.00020699,2]
[364935845,1749318632234,-440.0,0.00020699,2]
[364935846,1749318632243,-440.0,0.00020699,2]
[364935847,1749318632253,-440.0,0.00020699,2]
[364935848,1749318632263,-440.0,0.00020699,2]
[364935849,1749318632273,-440.0,0.00020699,2]
[364935850,1749318632283,-440.0,0.00020699,2]
[364935851,1749318632293,-440.0,0.00020699,2]
[364935852,1749318632302,-440.0,0.00020699,2]
[364935853,1749318632312,-440.0,0.00020699,2]
[364935854,1749318632322,-440.0,0.00020699,2]
[364935855,1749318632331,-440.0,0.00020699,2]
[364935856,1749318632344,-440.0,0.00020699,2]
[364935857,1749318632354,-440.0,0.00020702,2]
[364935858,1749318632364,-440.0,0.00020702,2]
[364935859,1749318632374,-440.0,0.00020702,2]
[364935860,1749318632384,-440.0,0.00020702,2]
[364935861,1749318632394,-503.63052869,0.00020788,2]
[364935862,1749318632404,-175.886,0.0002079,2]
[364935863,1749318632413,-440.0,0.0002079,2]
[364935864,1749318632423,-440.0,0.0002079,2]
[364935865,1749318632433,-440.0,0.0002079,2]
[364935866,1749318632442,-440.0,0.0002079,2]
[364935867,1749318632452,-440.0,0.0002079,2]
[364935868,1749318632462,-400.0,0.0002079,2]
[364935869,1749318632472,-440.0,0.0002079,2]
[364935870,1749318632482,-500.0,0.00020855,2]
[364935871,1749318632492,-381.68260594,0.000209,4]
[364935872,1749318632501,-834.52263295,0.0002091,2]
[364935873,1749318632512,-160.0,0.0002091,2]
[364935874,1749318632523,-213.01382694,0.0002091,2]
[364935875,1749318632533,-160.0,0.0002091,2]
[364935876,1749318632543,-842.5625,0.0002091,2]
[364935877,1749318632554,-160.0,0.0002091,2]
[364935878,1749318632564,-4892.26,0.00020973,2]
[364935879,1749318632573,-440.0,0.00020973,2]
[364935880,1749318632584,-440.0,0.00020973,2]
[364935881,1749318632594,-543.25531892,0.00020973,2]
[364935882,1749318632605,-440.0,0.00020973,2]
[364935883,1749318632616,-440.0,0.00020973,2]
[364935884,1749318632626,-440.0,0.00020973,2]
[364935885,1749318632637,-440.0,0.00020973,2]
[364935886,1749318632648,-440.0,0.00020976,2]
[364935887,1749318632658,-328.09,0.00020976,2]
[364935888,1749318632668,-440.0,0.00020976,2]
[364935889,1749318632679,-381.68260569,0.00021038,4]
[364935890,1749318632688,-293.49500189,0.00021064,2]
[364935891,1749318632698,-440.0,0.00021064,2]
[364935892,1749318632708,-320.2,0.00021064,2]
[364935893,1749318632717,-440.0,0.00021064,2]
[364935894,1749318632727,-500.0,0.0002115,2]
[364935895,1749318632738,-500.0,0.0002115,2]
[364935896,1749318632748,-500.0,0.0002115,2]
[364935897,1749318632757,-500.0,0.0002115,2]
[364935898,1749318632768,-344.95995253,0.0002115,2]
[364935899,1749318632779,-381.68260569,0.00021176,4]
[364935900,1749318632788,-300.0,0.00021214,2]
[364935901,1749318632798,-300.0,0.00021214,2]
[364935902,1749318632808,-300.0,0.00021214,2]
[364935903,1749318632818,-307.0,0.00021214,2]
[364935904,1749318632828,-2519.26811237,0.00021247,2]
[364935905,1749318632841,-501.98649988,0.00021247,2]
[364935906,1749318632862,-500.0,0.00020698,2]
[364935907,1749318632872,-48.5385741,0.00021247,2]
[364935919,1749318637815,-618.51525654,0.00020698,2]
[364935920,1749318637825,-500.0,0.00020698,2]
[364935921,1749318637835,-500.0,0.00020698,2]
[364935922,1749318637845,-440.0,0.00020699,2]
[364935923,1749318637856,-440.0,0.00020702,2]
[364935924,1749318637866,-440.0,0.00020976,2]
[364935925,1749318637876,-1822.46681365,0.00021247,2]
[364935926,1749318637886,-440.0,0.00021247,2]
[364935927,1749318637895,-440.0,0.00021247,2]
[364935928,1749318637906,-440.0,0.00021247,2]
[364935929,1749318637917,-440.0,0.00021247,2]
[364935930,1749318637927,-440.0,0.00021247,2]
[364935931,1749318637937,-440.0,0.0002125,2]
[364935932,1749318637947,-358.81053539,0.0002125,2]
[364935933,1749318637957,-233.58401965,0.0002125,2]
[364935934,1749318637967,-1618.004919,0.0002125,2]
[364935936,1749318640119,-440.0,0.00020699,2]
[364935937,1749318640132,-430.0,0.00020699,2]
[364935938,1749318640144,-378.02966338,0.00020699,2]
[364935939,1749318640226,-61.97033662,0.00020699,2]
[364935940,1749318640236,-525.76638072,0.0002125,2]
[364935986,1749318642970,-440.0,0.00020699,2]
[364935987,1749318642980,-440.0,0.00020699,2]
[364935988,1749318642991,-47856.22870028,0.0002125,2]
[364935989,1749318643000,-381.68260569,0.00021314,5]
[364935990,1749318643011,-1200.0,0.00021315,2]
[364935991,1749318643021,-440.0,0.00021338,2]
[364935992,1749318643032,-440.0,0.00021338,2]
[364935993,1749318643043,-381.68260569,0.00021452,5]
[364935994,1749318643053,-4892.26,0.00021521,2]
[364935995,1749318643063,-440.0,0.00021521,2]
[364935996,1749318643074,-440.0,0.00021521,2]
[364935997,1749318643083,-225.2,0.00021521,2]
[364935998,1749318643094,-554.42,0.00021524,2]
[364935999,1749318643104,-151.0,0.00021528,2]
[364936000,1749318643114,-151.0,0.00021528,2]
[364936001,1749318643124,-381.68260569,0.0002159,5]
[364936002,1749318643135,-236.22,0.000216,2]
[364936003,1749318643148,-440.0,0.00021612,2]
[364936004,1749318643159,-440.0,0.00021612,2]
[364936005,1749318643168,-381.68260569,0.00021728,5]
[364936006,1749318643179,-777.3,0.00021752,2]
[364936007,1749318643190,-4892.26,0.00021795,2]
[364936008,1749318643200,-440.0,0.00021795,2]
[364936009,1749318643213,-525.21181678,0.00021795,2]
[364936010,1749318643223,-381.68260569,0.00021866,6]
[364936011,1749318643235,-440.0,0.00021886,2]
[364936012,1749318643245,-367.62906177,0.00021886,2]
[364936013,1749318643257,-381.68260569,0.00022003,6]
[364936014,1749318643266,-4892.26,0.00022069,2]
[364936015,1749318643276,-440.0,0.00022069,2]
[364936016,1749318643287,-151.0,0.00022076,7]
[364936017,1749318643299,-299.63381,0.00022076,7]
[364936018,1749318643308,-207.4,0.00022098,2]
[364936019,1749318643318,-381.68260569,0.00022141,6]
[364936020,1749318643328,-440.0,0.0002216,2]
[364936021,1749318643337,-381.68260569,0.00022279,6]
[364936022,1749318643347,-4892.26,0.00022343,2]
[364936023,1749318643357,-440.0,0.00022343,2]
[364936024,1749318643366,-381.68260569,0.00022417,7]
[364936025,1749318643377,-440.0,0.00022434,2]
[364936026,1749318643386,-381.68260569,0.00022555,7]
[364936027,1749318643396,-159.60942691,0.0002259,2]
[364936028,1749318643407,-4892.26,0.00022617,2]
[364936029,1749318643417,-440.0,0.00022617,2]
[364936030,1749318643428,-381.68260569,0.00022693,7]
[364936031,1749318643438,-440.0,0.00022708,2]
[364936032,1749318643450,-381.68260569,0.00022831,8]
[364936033,1749318643461,-4892.26,0.00022891,2]
[364936034,1749318643472,-440.0,0.00022891,2]
[364936035,1749318643483,-151.0,0.00022898,7]
[364936036,1749318643493,-381.68260569,0.00022969,8]
[364936037,1749318643502,-457.94,0.00022982,2]
[364936038,1749318643512,-236.22,0.00023,7]
[364936039,1749318643521,-1000.0,0.00023,23]
[364936040,1749318643530,-500.0,0.00023047,2]
[364936041,1749318643540,-381.68260569,0.00023107,8]
[364936042,1749318643550,-4892.26,0.00023165,2]
[364936043,1749318643560,-440.0,0.00023165,2]
[364936044,1749318643570,-381.68260569,0.00023245,8]
[364936045,1749318643580,-381.68260569,0.00023383,9]
[364936046,1749318643590,-4892.26,0.00023439,2]
[364936047,1749318643600,-440.0,0.00023439,2]
[364936048,1749318643610,-215.0738,0.00023467,2]
[364936049,1749318643620,-381.68260569,0.00023521,9]
[364936050,1749318643629,-381.68260569,0.00023659,9]
[364936051,1749318643639,-4892.26,0.00023713,2]
[364936052,1749318643648,-440.0,0.00023713,2]
[364936053,1749318643658,-151.0,0.00023722,7]
[364936054,1749318643668,-1554.6,0.0002373,2]
[364936055,1749318643677,-956.46491467,0.00023758,2]
[364936056,1749318643687,-381.68260569,0.00023797,9]
[364936057,1749318643697,-151.0,0.000238,7]
[364936058,1749318643706,-912.99,0.000238,2]
[364936059,1749318643717,-750.0,0.000239,90]
[364936060,1749318643727,-1231.86,0.000239,30]
[364936061,1749318643737,-1038.0,0.000239,60]
[364936062,1749318643747,-173.81904823,0.000239,2]
[364936063,1749318643756,-492.209657,0.00023912,3]
[364936064,1749318643766,-381.68260569,0.00023934,10]
[364936065,1749318643775,-4892.26,0.00023987,2]
[364936066,1749318643786,-440.0,0.00023987,2]
[364936067,1749318643795,-2000.0,0.00024,2]
[364936068,1749318643805,-4621.50927348,0.00024,30]
[364936069,1749318645883,-121483.01072652,0.00024,30]
[364936070,1749318645894,-11851.94353573,0.00024,30]
[364936071,1749318645903,-1000.0,0.00024,24]
[364936072,1749318645913,-381.68260569,0.00024072,10]
[364936073,1749318645924,-10643.89171358,0.00024109,11]
[364936077,1749318934707,217.3350881,0.00018883,2]
[364936079,1749319092140,164.057632,0.00013699,2]
[364936082,1749319658482,388.98090218,0.000189,2]
[364936083,1749319765464,-300.0,0.00019626,2]
[364936084,1749319765488,-500.0,0.00019627,2]
[364936085,1749319765508,-500.0,0.00019627,2]
[364936086,1749319765528,-500.0,0.00019627,2]
[364936087,1749319765549,-500.0,0.00019627,2]
[364936088,1749319765569,-500.0,0.00019627,2]
[364936089,1749319765596,-500.0,0.00019627,2]
[364936090,1749319765618,-500.0,0.00019627,2]
[364936091,1749319765639,-500.0,0.00019627,2]
[364936092,1749319765662,-500.0,0.00019627,2]
[364936093,1749319765685,-500.0,0.00019627,2]
[364936094,1749319765705,-522.08948406,0.00019627,2]
[364936095,1749319765727,-500.0,0.00019627,2]
[364936096,1749319765748,-500.0,0.00019627,2]
[364936097,1749319765769,-500.0,0.00019627,2]
[364936098,1749319765790,-338.2042214,0.00019627,2]
[364936099,1749319765815,-500.0,0.00019627,2]
[364936100,1749319765835,-500.0,0.00019627,2]
[364936101,1749319765856,-415.38792871,0.00019627,2]
[364936102,1749319765878,-500.0,0.00019627,2]
[364936103,1749319765902,-500.0,0.00019627,2]
[364936104,1749319765923,-500.0,0.00019627,2]
[364936105,1749319765943,-500.0,0.00019627,2]
[364936106,1749319765964,-500.0,0.00019627,2]
[364936107,1749319765985,-500.0,0.00019627,2]
[364936108,1749319766007,-500.0,0.00019627,2]
[364936109,1749319766028,-500.0,0.00019627,2]
[364936110,1749319766049,-500.0,0.00019627,2]